bitfinex-derivatives/quotes_BTCF0:USTF0_20250416
["timestamp","ask_amount","ask_price","bid_price","bid_amount"]
[1744807570586,0.1191592,83928.0,83927.0,0.18214869]
[1744807570793,0.4799592,83928.0,83927.0,0.18214869]
[1744807570987,0.5786592,83928.0,83927.0,0.18214869]
[1744807571493,0.1191606,83927.0,83926.0,0.18214869]
[1744807571997,0.1853606,83927.0,83926.0,0.18214869]
[1744807572884,0.1853606,83927.0,83926.0,0.18522869]
[1744807574592,0.19437411,83927.0,83926.0,0.18522869]
[1744807576498,0.19437411,83927.0,83926.0,0.00308]
[1744807576499,0.28490096,83927.0,83926.0,0.00308]
[1744807580391,0.19437411,83927.0,83926.0,0.00308]
[1744807583195,0.55517411,83927.0,83926.0,0.00308]
[1744807583598,0.55517411,83927.0,83926.0,0.003]
[1744807583791,0.1191777,83915.0,83914.0,0.0309]
[1744807583991,0.1191791,83914.0,83909.0,0.0302458]
[1744807584192,0.5751791,83914.0,83910.0,0.0309]
[1744807584392,0.5751791,83914.0,83913.0,8.002e-05]
[1744807584591,0.1191976,83901.0,83900.0,0.1]
[1744807584798,0.4799976,83901.0,83900.0,0.1]
[1744807585503,0.5432976,83901.0,83900.0,0.1]
[1744807585904,0.5442976,83901.0,83900.0,0.10008]
[1744807586404,0.5432976,83901.0,83900.0,0.10008]
[1744807586601,0.5452976,83901.0,83900.0,0.10008]
[1744807586808,0.4819976,83901.0,83900.0,0.249279]
[1744807587006,0.002,83901.0,83900.0,0.249279]
[1744807587204,0.1191776,83918.0,83917.0,0.1787557]
[1744807587505,0.23988007,83918.0,83917.0,0.2295862]
[1744807588395,0.23988007,83918.0,83917.0,0.17]
[1744807588595,0.1191848,83911.0,83910.0,0.1191843]
[1744807588798,0.1191848,83911.0,83910.0,0.2930843]
[1744807589804,0.1191848,83911.0,83910.0,0.2931643]
[1744807590307,0.1261848,83911.0,83910.0,0.2941643]
[1744807590901,0.1291848,83911.0,83910.0,0.2941643]
[1744807594305,0.1291848,83911.0,83910.0,0.1841643]
[1744807594503,0.1604848,83911.0,83910.0,0.06498]
[1744807594700,0.5537848,83911.0,83910.0,0.0649]
[1744807594900,0.5537848,83911.0,83910.0,0.00108]
[1744807598210,0.5868848,83911.0,83910.0,0.00108]
[1744807598607,0.5868848,83911.0,83910.0,0.001]
[1744807598908,0.5868848,83911.0,83910.0,0.00108]
[1744807604505,0.5537848,83911.0,83910.0,0.00108]
[1744807604711,0.01,83911.0,83910.0,0.3002648]
[1744807605415,0.01,83911.0,83910.0,0.3722648]
[1744807605711,0.12070247,83920.0,83913.0,0.0595897]
[1744807605904,0.12070247,83920.0,83919.0,0.479972]
[1744807606108,0.12070247,83920.0,83919.0,0.819972]
[1744807606303,0.23987307,83920.0,83919.0,0.819972]
[1744807606708,0.23987307,83920.0,83919.0,0.882272]
[1744807606908,0.24787307,83920.0,83919.0,0.882272]
[1744807607109,0.25187307,83920.0,83919.0,0.882272]
[1744807607711,0.25187307,83920.0,83919.0,0.521472]
[1744807608013,0.1271706,83920.0,83919.0,0.521472]
[1744807608214,0.008,83920.0,83919.0,0.521472]
[1744807608908,0.1191679,83922.0,83921.0,0.1191692]
[1744807609108,0.1191679,83922.0,83921.0,0.2991692]
[1744807609313,0.00017873,83923.0,83922.0,0.1191677]
[1744807609506,0.00017873,83923.0,83922.0,0.3710677]
[1744807610813,0.00017873,83923.0,83922.0,0.3720677]
[1744807612609,0.11934503,83923.0,83922.0,0.3720677]
[1744807616913,0.15194503,83923.0,83922.0,0.3720677]
[1744807618218,0.15194503,83923.0,83922.0,0.3721477]
[1744807619216,0.15194503,83923.0,83922.0,0.7329477]
[1744807620118,0.0595789,83929.0,83928.0,0.1787373]
[1744807620320,0.0917789,83929.0,83928.0,0.3487373]
[1744807621515,0.0927789,83929.0,83928.0,0.17]
[1744807621820,0.0927789,83929.0,83922.0,0.00108]
[1744807621821,0.1191663,83923.0,83922.0,0.00108]
[1744807622021,0.4799663,83923.0,83922.0,0.2202477]
[1744807622320,0.2101663,83923.0,83922.0,0.2201677]
[1744807622521,0.2101663,83923.0,83922.0,0.2202477]
[1744807622725,0.2101663,83923.0,83922.0,0.2191677]
[1744807623123,0.2101663,83923.0,83922.0,0.2192477]
[1744807623621,0.2111663,83923.0,83922.0,0.2192477]
[1744807629518,0.2111663,83923.0,83922.0,0.2132977]
[1744807629718,0.1808663,83923.0,83922.0,0.2132977]
[1744807630918,0.1808663,83923.0,83922.0,0.2452977]
[1744807631323,0.1808663,83923.0,83922.0,0.2132977]
[1744807631724,0.1808663,83923.0,83922.0,0.2132177]
[1744807632027,0.1808663,83923.0,83922.0,0.2132977]
[1744807639234,0.1808663,83923.0,83922.0,0.2132177]
[1744807639536,0.1808663,83923.0,83922.0,0.2132977]
[1744807639837,0.1808663,83923.0,83922.0,0.09413]
[1744807640040,0.1808663,83923.0,83922.0,8e-05]
[1744807640239,0.1191692,83921.0,83920.0,0.00017873]
[1744807640434,0.1191748,83917.0,83916.0,0.000108]
[1744807640631,0.119182,83912.0,83911.0,0.18214869]
[1744807640833,0.479982,83912.0,83911.0,0.18214869]
[1744807641226,0.543782,83912.0,83911.0,0.18214869]
[1744807641426,0.182982,83912.0,83911.0,0.41133209]
[1744807642247,0.182982,83912.0,83911.0,0.29214869]
[1744807642844,0.182982,83912.0,83911.0,0.18222869]
[1744807643240,0.182982,83912.0,83911.0,0.18522869]
[1744807643446,0.182982,83912.0,83911.0,0.00308]
[1744807643642,0.2383829,83909.0,83908.0,0.1191834]
[1744807643948,0.2383829,83909.0,83908.0,0.1491834]
[1744807644959,0.2383829,83909.0,83908.0,0.03]
[1744807645154,0.2383829,83909.0,83908.0,0.1491876]
[1744807645643,0.1191905,83906.0,83905.0,0.1192999]
[1744807645842,0.1191905,83906.0,83905.0,0.2992999]
[1744807646448,0.1815905,83906.0,83905.0,0.2992999]
[1744807646852,0.1825905,83906.0,83905.0,0.2992999]
[1744807647441,0.1835905,83906.0,83905.0,0.2992999]
[1744807651553,0.1835905,83906.0,83905.0,0.000108]
[1744807652154,0.1191976,83901.0,83900.0,0.1]
[1744807652458,0.1191976,83901.0,83900.0,0.280108]
[1744807652642,0.1816976,83901.0,83900.0,0.280108]
[1744807653048,0.5424976,83901.0,83900.0,0.280108]
[1744807653444,0.5424976,83901.0,83900.0,0.281108]
[1744807653650,0.5424976,83901.0,83900.0,0.281]
[1744807653953,0.5424976,83901.0,83900.0,0.28108]
[1744807654558,0.5434976,83901.0,83900.0,0.28008]
[1744807655353,0.5434976,83901.0,83900.0,0.10008]
[1744807658459,0.5434976,83901.0,83900.0,0.21008]
[1744807658652,0.5434976,83901.0,83900.0,0.10008]
[1744807662160,0.1826976,83901.0,83900.0,0.10008]
[1744807663563,0.1826976,83901.0,83900.0,0.219279]
[1744807663960,0.1826976,83901.0,83900.0,0.281279]
[1744807667854,0.1826976,83901.0,83900.0,0.291279]
[1744807668063,0.1826976,83901.0,83900.0,0.17208]
[1744807668459,0.1826976,83901.0,83900.0,0.291279]
[1744807671361,0.0317,83901.0,83900.0,0.291279]
[1744807671561,0.2383737,83910.0,83904.0,0.0595966]
[1744807671865,0.1191819,83913.0,83912.0,0.119182]
[1744807672066,0.0595905,83913.0,83912.0,0.365182]
[1744807672861,0.0923905,83913.0,83912.0,0.365182]
[1744807673661,0.21099421,83923.0,83914.0,0.1191791]
[1744807673662,0.15141081,83923.0,83914.0,0.1191791]
[1744807673861,0.0313,83917.0,83914.0,0.6399791]
[1744807674063,0.1504762,83917.0,83914.0,0.7345791]
[1744807674262,0.1191768,83916.0,83914.0,0.7345791]
[1744807674564,0.1191768,83916.0,83914.0,0.7445791]
[1744807674757,0.1191768,83916.0,83915.0,0.1191777]
[1744807674957,0.1191768,83916.0,83915.0,0.3633777]
[1744807675556,0.1504768,83916.0,83915.0,0.3633777]
[1744807677266,0.2150768,83916.0,83915.0,0.3316577]
[1744807677969,0.1504768,83916.0,83915.0,0.3644577]
[1744807678365,0.0313,83916.0,83915.0,0.3644577]
[1744807678557,0.0313,83916.0,83915.0,0.3744577]
[1744807678761,0.1504763,83916.0,83915.0,0.3744577]
[1744807679162,0.0313,83916.0,83915.0,0.3744577]
[1744807679362,0.00017873,83920.0,83919.0,0.119172]
[1744807679562,0.11934933,83920.0,83919.0,0.289172]
[1744807679763,0.11934933,83920.0,83919.0,0.352472]
[1744807680157,0.0595799,83928.0,83926.0,0.1787416]
[1744807680158,0.1191609,83927.0,83926.0,0.1787416]
[1744807680363,0.1191609,83927.0,83926.0,0.3287416]
[1744807680563,0.1510609,83927.0,83926.0,0.3287416]
[1744807680764,0.0319,83927.0,83926.0,0.3287416]
[1744807681068,0.1191515,83934.0,83933.0,0.1787267]
[1744807681368,0.1191515,83934.0,83933.0,0.2187267]
[1744807681572,0.1497515,83934.0,83933.0,0.2187267]
[1744807681781,0.1497515,83934.0,83933.0,0.04]
[1744807682066,0.1497515,83934.0,83933.0,0.04008]
[1744807682268,0.1497515,83934.0,83933.0,8e-05]
[1744807682568,0.1816515,83934.0,83933.0,8e-05]
[1744807682764,0.1787466,83926.0,83925.0,0.1787446]
[1744807682964,0.2383283,83926.0,83925.0,0.2195811]
[1744807683168,0.1191663,83923.0,83922.0,0.0001458]
[1744807683369,0.1191663,83923.0,83922.0,0.1193135]
[1744807683562,0.1799663,83923.0,83922.0,0.1193135]
[1744807683969,0.1799663,83923.0,83922.0,0.1500135]
[1744807685075,0.1799663,83923.0,83922.0,0.1600135]
[1744807687966,0.1799663,83923.0,83922.0,0.1919135]
[1744807689067,0.1799663,83923.0,83922.0,0.1600135]
[1744807689663,0.1799663,83923.0,83922.0,0.0408458]
[1744807689863,0.1799663,83923.0,83922.0,0.1293135]
[1744807690068,0.1799663,83923.0,83922.0,0.1393135]
[1744807690267,0.1799663,83923.0,83922.0,0.1293135]
[1744807690469,0.1799663,83923.0,83922.0,0.1599135]
[1744807691273,0.1799663,83923.0,83922.0,0.1293135]
[1744807692077,0.1799663,83923.0,83922.0,0.1602135]
[1744807694274,0.1799663,83923.0,83922.0,0.1502135]
[1744807694776,0.1799663,83923.0,83922.0,0.1602135]
[1744807694979,0.1799663,83923.0,83922.0,0.1919135]
[1744807695371,0.1799663,83923.0,83922.0,0.2019135]
[1744807696174,0.1799663,83923.0,83922.0,0.1702135]
[1744807696379,0.1799663,83923.0,83922.0,0.1393135]
[1744807696679,0.1799663,83923.0,83922.0,0.1293135]
[1744807698168,0.1799663,83923.0,83922.0,0.1606135]
[1744807698674,0.1799663,83923.0,83922.0,0.1706135]
[1744807698872,0.1799663,83923.0,83922.0,0.1606135]
[1744807699680,0.1799663,83923.0,83922.0,0.1706135]
[1744807700882,0.1799663,83923.0,83922.0,0.1606135]
[1744807701279,0.1799663,83923.0,83922.0,0.1932135]
[1744807703378,0.1799663,83923.0,83922.0,0.2032135]
[1744807703976,0.1799663,83923.0,83922.0,0.1706135]
[1744807704377,0.1799663,83923.0,83922.0,0.1393135]
[1744807706084,0.1799663,83923.0,83922.0,0.0201458]
[1744807706281,0.1799663,83923.0,83922.0,1e-08]
[1744807706491,0.4418816,83923.0,83922.0,1e-08]
[1744807706787,0.119172,83919.0,83918.0,0.00017873]
[1744807707082,0.479972,83919.0,83918.0,0.09017873]
[1744807707385,0.542072,83919.0,83918.0,0.09017873]
[1744807707982,0.545072,83919.0,83918.0,0.09017873]
[1744807708287,0.545072,83919.0,83918.0,0.00017873]
[1744807708681,0.119182,83912.0,83911.0,0.18214869]
[1744807708881,0.479982,83912.0,83911.0,0.18214869]
[1744807709585,0.541182,83912.0,83911.0,0.07305043]
[1744807709787,0.543182,83912.0,83911.0,0.07305043]
[1744807710386,0.543182,83912.0,83911.0,0.07313043]
[1744807710688,0.545182,83912.0,83911.0,0.07313043]
[1744807710989,0.547182,83912.0,83911.0,0.07313043]
[1744807711881,0.547182,83912.0,83911.0,8e-05]
[1744807714991,0.907982,83912.0,83911.0,8e-05]
[1744807718886,0.547182,83912.0,83911.0,8e-05]
[1744807719191,0.12070247,83921.0,83920.0,0.1191706]
[1744807719489,0.12070247,83921.0,83920.0,0.1591706]
[1744807719490,0.23987167,83921.0,83920.0,0.1591706]
[1744807719882,0.27137167,83921.0,83920.0,0.1591706]
[1744807720080,0.27137167,83921.0,83920.0,0.2226706]
[1744807720483,0.27537167,83921.0,83920.0,0.2226706]
[1744807720682,0.28237167,83921.0,83920.0,0.2236706]
[1744807721079,0.27537167,83921.0,83920.0,0.2226706]
[1744807722194,0.27137167,83921.0,83920.0,0.1591706]
[1744807722383,0.30247167,83921.0,83920.0,0.04008]
[1744807722784,0.2131692,83921.0,83920.0,0.04008]
[1744807722989,0.2131692,83921.0,83920.0,8e-05]
[1744807723489,0.2131692,83921.0,83920.0,0.03198]
[1744807723686,0.2131692,83921.0,83920.0,0.06278]
[1744807724391,0.2131692,83921.0,83920.0,0.07278]
[1744807725184,0.2161692,83921.0,83920.0,0.07278]
[1744807725685,0.2151692,83921.0,83920.0,0.07278]
[1744807726491,0.2131692,83921.0,83920.0,0.07278]
[1744807726693,0.2141692,83921.0,83920.0,0.07278]
[1744807727291,0.2141692,83921.0,83920.0,0.06278]
[1744807727597,0.2141692,83921.0,83920.0,0.1819506]
[1744807727803,0.2141692,83921.0,83920.0,0.06278]
[1744807731998,0.2141692,83921.0,83920.0,0.07278]
[1744807732988,0.5749692,83921.0,83920.0,0.07278]
[1744807736198,0.5435692,83921.0,83920.0,0.07278]
[1744807736394,0.5124692,83921.0,83920.0,0.07278]
[1744807737100,0.5440692,83921.0,83920.0,0.07278]
[1744807739201,0.5440692,83921.0,83920.0,0.06278]
[1744807739397,0.5440692,83921.0,83920.0,0.18278]
[1744807741808,0.1191748,83917.0,83916.0,0.000108]
[1744807742106,0.1191834,83911.0,83910.0,0.0327]
[1744807743203,0.1191862,83909.0,83908.0,0.3609458]
[1744807743603,0.1825862,83909.0,83908.0,0.3608]
[1744807744402,0.1825862,83909.0,83908.0,8e-05]
[1744807745507,0.1835862,83909.0,83908.0,8e-05]
[1744807745708,0.1835862,83909.0,83900.0,0.1]
[1744807745709,0.1191976,83901.0,83900.0,0.1]
[1744807746195,0.1818976,83901.0,83900.0,0.1]
[1744807747105,0.1818976,83901.0,83900.0,0.11]
[1744807748110,0.1818976,83901.0,83900.0,0.111]
[1744807750011,0.1818976,83901.0,83900.0,0.230199]
[1744807750309,0.1818976,83901.0,83900.0,0.1726]
[1744807750614,0.1818976,83901.0,83900.0,0.1415]
[1744807750819,0.1818976,83901.0,83900.0,0.111]
[1744807751203,0.1818976,83901.0,83900.0,0.101]
[1744807751612,0.1818976,83901.0,83900.0,0.0566177]
[1744807752309,0.1818976,83901.0,83900.0,0.0566977]
[1744807752515,0.1818976,83901.0,83900.0,0.0566177]
[1744807752900,0.1818976,83901.0,83900.0,0.0566977]
[1744807753108,0.19080526,83901.0,83900.0,0.001]
[1744807753310,0.44080526,83901.0,83900.0,1e-07]
[1744807753610,0.119216,83888.0,83887.0,0.00512591]
[1744807753810,0.480016,83888.0,83887.0,0.00512591]
[1744807754410,0.542616,83888.0,83887.0,0.00512591]
[1744807754807,0.542616,83888.0,83887.0,0.00712591]
[1744807755313,0.542616,83888.0,83887.0,0.00720591]
[1744807755613,0.542616,83888.0,83887.0,0.01220591]
[1744807761119,0.548576,83888.0,83887.0,0.01220591]
[1744807761517,0.485976,83888.0,83887.0,0.13142341]
[1744807761722,0.125176,83888.0,83887.0,0.29142341]
[1744807761915,0.155576,83888.0,83887.0,0.35612341]
[1744807762820,0.155576,83888.0,83887.0,0.01220591]
[1744807763122,0.218076,83888.0,83887.0,0.01220591]
[1744807766118,0.218076,83888.0,83887.0,0.07580591]
[1744807772924,0.186576,83888.0,83887.0,0.07580591]
[1744807773429,0.186576,83888.0,83887.0,0.04290591]
[1744807773630,0.186576,83888.0,83887.0,0.04282591]
[1744807773827,0.186576,83888.0,83887.0,0.04290591]
[1744807774718,0.186576,83888.0,83887.0,0.01220591]
[1744807777229,0.180616,83888.0,83887.0,0.01220591]
[1744807777725,0.180616,83888.0,83887.0,0.01212591]
[1744807777928,0.180616,83888.0,83887.0,0.01220591]
[1744807778323,0.180616,83888.0,83887.0,0.00624591]
[1744807781424,0.180616,83888.0,83887.0,0.00508]
[1744807781626,0.181616,83888.0,83887.0,0.00508]
[1744807782228,0.181616,83888.0,83887.0,0.005]
[1744807782427,0.181616,83888.0,83887.0,0.00508]
[1744807782627,0.181616,83888.0,83887.0,0.005]
[1744807782827,0.1192274,83880.0,83879.0,0.0305]
[1744807783123,0.1192374,83873.0,83872.0,0.1192378]
[1744807783324,0.1192374,83873.0,83872.0,0.2012378]
[1744807783829,0.4800374,83873.0,83872.0,0.082]
[1744807784034,0.5127374,83873.0,83872.0,0.08208]
[1744807784327,0.5127374,83873.0,83872.0,0.05008]
[1744807784539,0.5429374,83873.0,83872.0,0.00308]
[1744807784737,0.9037374,83873.0,83872.0,0.003]
[1744807784927,0.9037374,83873.0,83872.0,0.00308]
[1744807785725,0.9037374,83873.0,83872.0,0.00508]
[1744807786735,0.9037374,83873.0,83872.0,0.005]
[1744807786935,0.9037374,83873.0,83872.0,0.00508]
[1744807787525,0.9087374,83873.0,83872.0,0.00208]
[1744807787943,0.9117374,83873.0,83872.0,8e-05]
[1744807789035,1.03219824,83873.0,83872.0,8e-05]
[1744807791131,0.31059824,83873.0,83872.0,8e-05]
[1744807791336,1.03219824,83873.0,83872.0,8e-05]
[1744807793646,0.9117374,83873.0,83872.0,8e-05]
[1744807794138,0.1192516,83863.0,83862.0,0.0629]
[1744807794340,0.4800516,83863.0,83862.0,0.0629]
[1744807794535,0.5435516,83863.0,83862.0,0.0629]
[1744807795844,0.5445516,83863.0,83862.0,0.0629]
[1744807796033,0.5455516,83863.0,83862.0,0.0629]
[1744807797840,0.5455516,83863.0,83862.0,0.06298]
[1744807798144,0.5455516,83863.0,83862.0,0.0309]
[1744807798344,0.5455516,83863.0,83862.0,0.03098]
[1744807798746,0.5455516,83863.0,83862.0,0.0309]
[1744807798940,0.5455516,83863.0,83862.0,0.03098]
[1744807799633,0.5455516,83863.0,83862.0,8e-05]
[1744807800143,0.119253,83862.0,83861.0,0.0051275]
[1744807800538,0.180153,83862.0,83861.0,0.0051275]
[1744807801140,0.1192587,83858.0,83857.0,0.000108]
[1744807801335,0.4800587,83858.0,83857.0,0.000108]
[1744807801539,0.5425587,83858.0,83857.0,0.000108]
[1744807801743,0.1192644,83854.0,83853.0,0.00046]
[1744807801942,0.13111611,83854.0,83853.0,0.00046]
[1744807802142,0.22641611,83854.0,83853.0,0.00046]
[1744807802451,0.22641611,83854.0,83853.0,0.00054]
[1744807805049,0.22641611,83854.0,83853.0,0.00154]
[1744807805438,0.22641611,83854.0,83853.0,0.00354]
[1744807805942,0.23557437,83854.0,83853.0,0.00354]
[1744807806347,0.23557437,83854.0,83853.0,0.00308]
[1744807809145,0.59637437,83854.0,83853.0,0.00308]
[1744807809949,0.56357437,83854.0,83853.0,0.00308]
[1744807810740,0.3608,83854.0,83853.0,0.00308]
[1744807811046,0.4800644,83854.0,83853.0,0.2562458]
[1744807811255,0.4800644,83854.0,83853.0,0.1962458]
[1744807813649,0.4800644,83854.0,83853.0,0.07698]
[1744807813851,0.5126644,83854.0,83853.0,0.07698]
[1744807814040,0.5126644,83854.0,83853.0,0.06698]
[1744807814240,0.5126644,83854.0,83853.0,0.0769]
[1744807814440,0.5126644,83854.0,83853.0,0.0669]
[1744807814845,0.5126644,83854.0,83853.0,0.0769]
[1744807816051,0.4800644,83854.0,83853.0,0.07698]
[1744807816249,0.4800644,83854.0,83853.0,0.1962458]
[1744807817648,0.4800644,83854.0,83853.0,0.07698]
[1744807818050,0.5103644,83854.0,83853.0,0.07698]
[1744807818453,0.5103644,83854.0,83853.0,0.1962458]
[1744807819343,0.4800644,83854.0,83853.0,0.1962458]
[1744807820248,0.1192644,83854.0,83853.0,0.1962458]
[1744807820647,0.1192644,83854.0,83853.0,0.2062458]
[1744807821050,0.1192635,83855.0,83854.0,0.1788951]
[1744807821250,0.3608,83860.0,83859.0,0.1192573]
[1744807821449,0.4800559,83860.0,83859.0,0.3092573]
[1744807821648,0.4800559,83860.0,83859.0,0.3756573]
[1744807822346,0.1192559,83860.0,83859.0,0.3756573]
[1744807822648,0.0596223,83868.0,83863.0,0.1192516]
[1744807822849,0.0596223,83868.0,83863.0,0.6500516]
[1744807823049,0.1192477,83866.0,83863.0,0.7466516]
[1744807823258,0.00017884,83871.0,83863.0,0.7466516]
[1744807823449,0.1192471,83867.0,83866.0,0.1192459]
[1744807823654,0.09042098,83868.0,83867.0,0.1192459]
[1744807823853,0.09042098,83868.0,83867.0,0.3457459]
[1744807824157,0.20966548,83868.0,83867.0,0.3457459]
[1744807825449,0.21066548,83868.0,83867.0,0.3457459]
[1744807826754,0.24486548,83868.0,83867.0,0.3457459]
[1744807827353,0.21166548,83868.0,83867.0,0.3457459]
[1744807827561,0.09242098,83868.0,83867.0,0.3457459]
[1744807827964,0.21166548,83868.0,83867.0,0.3457459]
[1744807828163,0.1212445,83868.0,83867.0,0.3457459]
[1744807828865,0.002,83868.0,83867.0,0.3457459]
[1744807829954,0.1212445,83868.0,83867.0,0.3457459]
[1744807830868,0.1202445,83868.0,83867.0,0.3467459]
[1744807831169,0.1504445,83868.0,83867.0,0.3467459]
[1744807831370,0.1202445,83868.0,83867.0,0.3467459]
[1744807831868,0.1192445,83868.0,83867.0,0.3487459]
[1744807832075,0.1192445,83868.0,83867.0,0.3497459]
[1744807832761,0.1192445,83868.0,83867.0,0.3487459]
[1744807833069,0.00596,83870.0,83869.0,0.1192431]
[1744807833374,0.00017884,83871.0,83870.0,0.1192416]
[1744807833570,0.00017884,83871.0,83870.0,0.6600416]
[1744807833773,0.11941904,83871.0,83870.0,0.7242416]
[1744807834365,0.15201904,83871.0,83870.0,0.7242416]
[1744807835166,0.18361904,83871.0,83870.0,0.7242416]
[1744807835668,0.18361904,83871.0,83870.0,0.7052416]
[1744807836664,0.18361904,83871.0,83870.0,0.2802416]
[1744807837166,0.18361904,83871.0,83870.0,0.16108]
[1744807837470,0.18361904,83871.0,83870.0,0.2803216]
[1744807837765,0.18361904,83871.0,83870.0,0.1302416]
[1744807837966,0.18361904,83871.0,83870.0,0.1303216]
[1744807838560,0.18461904,83871.0,83870.0,0.1303216]
[1744807838869,0.18561904,83871.0,83870.0,0.1293216]
[1744807839464,0.18561904,83871.0,83870.0,0.01008]
[1744807840066,0.18561904,83871.0,83870.0,0.1293216]
[1744807840460,0.18561904,83871.0,83870.0,0.01008]
[1744807840671,0.18561904,83871.0,83870.0,0.01]
[1744807840967,0.18561904,83871.0,83870.0,0.01008]
[1744807843762,0.18561904,83871.0,83870.0,0.1293216]
[1744807846363,0.18561904,83871.0,83870.0,0.1598216]
[1744807848973,0.15401904,83871.0,83870.0,0.1598216]
[1744807849186,0.03477884,83871.0,83870.0,0.1906216]
[1744807849488,0.03477884,83871.0,83870.0,0.2006216]
[1744807849680,0.15401904,83871.0,83870.0,0.2006216]
[1744807850987,0.15301904,83871.0,83870.0,0.2016216]
[1744807851376,0.03277884,83871.0,83870.0,0.2016216]
[1744807851581,0.03277884,83871.0,83870.0,0.2036216]
[1744807851783,0.03277884,83871.0,83870.0,0.2046216]
[1744807851981,0.03277884,83871.0,83870.0,0.2016216]
[1744807852186,0.03277884,83871.0,83870.0,0.2046216]
[1744807854487,0.00017884,83871.0,83870.0,0.2046216]
[1744807854888,0.0306,83878.0,83877.0,0.1192317]
[1744807855194,0.0306,83878.0,83877.0,0.6600317]
[1744807855382,0.0306,83878.0,83877.0,0.7573317]
[1744807856893,0.0306,83878.0,83877.0,0.573]
[1744807857196,0.1809303,83878.0,83877.0,0.17]
[1744807857385,0.1788617,83871.0,83870.0,0.1788565]
[1744807857585,0.1788617,83871.0,83870.0,0.3188565]
[1744807857789,0.1788617,83871.0,83870.0,0.3498365]
[1744807858189,0.2415617,83871.0,83870.0,0.35866795]
[1744807858389,0.0627,83871.0,83870.0,0.35866795]
[1744807858594,0.1829402,83871.0,83870.0,0.39146795]
[1744807858786,0.1829402,83871.0,83870.0,0.40146795]
[1744807858994,0.1829402,83871.0,83870.0,0.40246795]
[1744807860694,0.1819402,83871.0,83870.0,0.35966795]
[1744807860889,0.1819402,83871.0,83870.0,0.2007008]
[1744807861091,0.1819402,83871.0,83870.0,0.2006208]
[1744807861493,0.1819402,83871.0,83870.0,0.14108]
[1744807861700,0.7927402,83871.0,83870.0,0.00108]
[1744807861887,0.1192473,83866.0,83865.0,0.000108]
[1744807862089,0.1192559,83860.0,83859.0,0.18183549]
[1744807862293,0.4800559,83860.0,83859.0,0.30109229]
[1744807862788,0.4800559,83860.0,83859.0,0.18183549]
[1744807863297,0.4800559,83860.0,83859.0,0.30109279]
[1744807863695,0.4800559,83860.0,83859.0,0.18183549]
[1744807864602,0.4820559,83860.0,83859.0,0.18183549]
[1744807865593,0.5464559,83860.0,83859.0,0.18183549]
[1744807865998,0.5464559,83860.0,83857.0,0.1192599]
[1744807865999,0.1192587,83858.0,83857.0,0.1192599]
[1744807866894,0.1192601,83857.0,83856.0,0.000108]
[1744807867089,0.1822601,83857.0,83856.0,0.1193695]
[1744807868189,0.1822601,83857.0,83856.0,0.000108]
[1744807868387,0.1822601,83857.0,83856.0,0.1193695]
[1744807868789,0.1822601,83857.0,83856.0,0.000108]
[1744807869700,0.0596364,83848.0,83846.0,0.1789115]
[1744807870005,0.2125743,83847.0,83846.0,0.2189115]
[1744807870900,0.2125743,83847.0,83846.0,0.2209115]
[1744807871098,0.2125743,83847.0,83846.0,0.2239115]
[1744807871599,0.2125743,83847.0,83846.0,0.2209115]
[1744807871800,0.2125743,83847.0,83846.0,0.2551115]
[1744807873491,0.2125743,83847.0,83846.0,0.26403192]
[1744807874195,0.2125743,83847.0,83846.0,0.29663192]
[1744807874395,0.2125743,83847.0,83846.0,0.0762]
[1744807875598,0.2125743,83847.0,83846.0,0.1954758]
[1744807876304,0.5733743,83847.0,83846.0,0.046]
[1744807876497,0.8233743,83847.0,83846.0,1e-07]
[1744807876697,0.11929,83836.0,83834.0,0.00902925]
[1744807877005,0.48009,83836.0,83829.0,0.18183549]
[1744807877396,0.54079,83836.0,83830.0,0.0001458]
[1744807877595,0.54079,83836.0,83829.0,0.18183549]
[1744807877805,0.1192985,83830.0,83829.0,0.18183549]
[1744807878006,0.1193,83829.0,83828.0,0.13840799]
[1744807878205,0.1193071,83824.0,83819.0,0.0005]
[1744807878502,0.4801071,83824.0,83823.0,0.14286514]
[1744807878703,0.7301071,83824.0,83823.0,0.14294514]
[1744807879305,0.7301071,83824.0,83823.0,4e-08]
[1744807879601,0.1193156,83818.0,83817.0,0.30314297]
[1744807879800,0.4801156,83818.0,83817.0,0.30314297]
[1744807880201,0.7301156,83818.0,83817.0,0.17034917]
[1744807880603,0.7301156,83818.0,83817.0,0.17026917]
[1744807880806,0.7301156,83818.0,83817.0,0.17034917]
[1744807881104,0.7331156,83818.0,83817.0,0.17034917]
[1744807881295,0.7331156,83818.0,83817.0,0.10035267]
[1744807881501,0.7331156,83818.0,83817.0,0.06166957]
[1744807881696,0.7331156,83818.0,83817.0,0.01468257]
[1744807881904,0.7331156,83818.0,83817.0,0.01476257]
[1744807882103,0.7960156,83818.0,83817.0,0.01476257]
[1744807882498,0.4362156,83818.0,83817.0,0.01476257]
[1744807882696,1.1578156,83818.0,83817.0,0.01476257]
[1744807883108,1.1578156,83818.0,83817.0,8e-05]
[1744807884302,1.1578156,83818.0,83806.0,0.000108]
[1744807884303,0.119327,83810.0,83806.0,0.000108]
[1744807884509,0.480127,83810.0,83806.0,0.000108]
[1744807885006,0.730127,83810.0,83809.0,8e-08]
[1744807885211,0.1193555,83790.0,83787.0,0.0328]
[1744807885506,0.4801555,83790.0,83789.0,0.1198869]
[1744807886207,0.4801555,83790.0,83789.0,0.00053]
[1744807886506,0.4821555,83790.0,83789.0,0.00053]
[1744807886693,0.5450555,83790.0,83789.0,0.00053]
[1744807886892,0.5450555,83790.0,83789.0,0.00061]
[1744807887897,0.5480555,83790.0,83789.0,0.00061]
[1744807888099,0.5480555,83790.0,83789.0,0.00053]
[1744807888398,0.5151555,83790.0,83789.0,0.00061]
[1744807888603,0.119364,83784.0,83783.0,0.00513228]
[1744807889405,0.180564,83784.0,83783.0,0.00513228]
[1744807890103,0.181564,83784.0,83783.0,0.00513228]
[1744807890608,0.181564,83784.0,83783.0,8e-08]
[1744807891204,0.119384,83770.0,83769.0,0.0325]
[1744807891507,0.480184,83770.0,83769.0,0.0975]
[1744807891808,0.480184,83770.0,83769.0,0.09758]
[1744807892009,0.480184,83770.0,83769.0,0.2168854]
[1744807892197,0.480184,83770.0,83769.0,0.2169654]
[1744807892398,0.069484,83770.0,83769.0,0.2279654]
[1744807892812,0.069484,83770.0,83769.0,0.2319654]
[1744807894301,0.1193759,83776.0,83775.0,0.1790617]
[1744807894500,0.1193759,83776.0,83775.0,0.1228877]
[1744807895199,0.0596861,83779.0,83775.0,0.1228877]
[1744807895396,0.119344,83801.0,83800.0,0.0596687]
[1744807895599,0.1789997,83807.0,83806.0,0.1193327]